bitfinex/quotes_SOLUSD_20251006
["timestamp","ask_amount","ask_price","bid_price","bid_amount"]
[1759761485568,0.1,235.12,235.09,0.66]
[1759761485902,0.1,235.12,235.1,3.47187579]
[1759761486061,0.1,235.12,235.11,3.47187579]
[1759761486260,0.1,235.12,235.11,40.77158356]
[1759761486564,0.1,235.12,235.11,47.51522726]
[1759761486770,0.1,235.12,235.11,16.93522726]
[1759761487090,0.1,235.12,235.11,47.53522726]
[1759761488377,0.1,235.12,235.11,50.99824924]
[1759761488871,0.1,235.12,235.11,47.53522726]
[1759761489186,0.1,235.12,235.11,20.36907409]
[1759761489489,0.1,235.12,235.11,50.94907409]
[1759761490287,20.9,235.24,235.12,4.25314732]
[1759761490288,0.1,235.24,235.12,4.25314732]
[1759761490475,0.1,235.24,235.15,20.8]
[1759761490790,0.1,235.24,235.16,46.97522726]
[1759761490972,0.1,235.24,235.17,2.81187579]
[1759761491301,0.1,235.24,235.18,16.27522726]
[1759761491603,0.1,235.24,235.18,13.46335147]
[1759761493380,0.1,235.24,235.19,30.72]
[1759761493582,0.1,235.24,235.18,13.46335147]
[1759761493903,0.1,235.24,235.19,30.7]
[1759761494290,0.1,235.24,235.2,0.66]
[1759761494491,0.1,235.24,235.21,0.66]
[1759761494785,0.1,235.24,235.22,0.66]
[1759761494984,0.1,235.24,235.23,0.66]
[1759761495562,0.1,235.24,235.23,31.36]
[1759761497001,0.1,235.24,235.23,38.05948555]
[1759761497185,0.1,235.24,235.23,40.85750116]
[1759761497779,0.1,235.24,235.23,38.05948555]
[1759761497994,0.1,235.24,235.23,38.03948555]
[1759761500396,0.1,235.24,235.23,7.35948555]
[1759761500701,0.1,235.24,235.23,38.01948555]
[1759761501590,0.1,235.24,235.23,7.35948555]
[1759761502114,0.1,235.24,235.23,37.33948555]
[1759761502291,0.1,235.24,235.23,38.00948555]
[1759761502907,0.1,235.24,235.23,37.33948555]
[1759761504488,0.1,235.24,235.23,38.00948555]
[1759761504905,0.1,235.24,235.23,6.69948555]
[1759761505225,0.1,235.24,235.23,37.31948555]
[1759761506712,0.1,235.24,235.23,6.69948555]
[1759761507015,0.1,235.24,235.23,37.31948555]
[1759761507513,0.1,235.24,235.23,37.98948555]
[1759761508809,0.1,235.24,235.23,10.15772738]
[1759761508986,0.1,235.24,235.23,37.94948555]
[1759761509914,0.1,235.24,235.23,6.69948555]
[1759761510090,0.1,235.24,235.23,37.27948555]
[1759761510410,0.1,235.24,235.23,37.94948555]
[1759761510894,0.1,235.24,235.23,42.20064399]
[1759761513027,0.1,235.24,235.23,51.73053608]
[1759761513929,0.1,235.24,235.23,43.98312925]
[1759761514134,0.1,235.24,235.23,48.90428769]
[1759761514434,0.1,235.24,235.23,51.69127836]
[1759761515629,0.1,235.24,235.23,51.02127836]
[1759761515825,0.1,235.24,235.23,48.21428769]
[1759761516326,0.1,235.24,235.23,51.66433931]
[1759761516735,0.1,235.24,235.23,51.00433931]
[1759761517218,0.1,235.24,235.23,51.66433931]
[1759761517816,0.1,235.24,235.23,51.64433931]
[1759761518343,0.1,235.24,235.23,46.73318087]
[1759761518508,0.82,235.24,235.23,2.79005162]
[1759761518710,0.82,235.24,235.23,30.5]
[1759761519006,0.82,235.24,235.17,13.07116313]
[1759761519206,0.72,235.23,235.18,33.3162127]
[1759761519515,0.72,235.22,235.19,2.7962127]
[1759761519838,0.72,235.21,235.2,33.3162127]
[1759761520220,0.72,235.23,235.2,33.3162127]
[1759761520423,0.72,235.22,235.21,2.7962127]
[1759761523455,0.1,235.24,235.21,2.7962127]
[1759761523456,0.82,235.24,235.21,2.7962127]
[1759761523629,0.82,235.24,235.22,2.7962127]
[1759761523630,0.72,235.23,235.22,2.7962127]
[1759761525029,3.7529429,235.23,235.22,2.7962127]
[1759761525351,8.00410134,235.23,235.22,2.7962127]
[1759761525925,18.88057655,235.23,235.22,2.7962127]
[1759761526343,29.50847265,235.23,235.22,2.82424005]
[1759761527058,18.88057655,235.23,235.22,2.82424005]
[1759761527738,11.59647521,235.23,235.22,2.82424005]
[1759761527946,0.72,235.23,235.22,2.82424005]
[1759761528153,8.00410134,235.23,235.22,2.82424005]
[1759761529664,10.87647521,235.22,235.14,3.5138936]
[1759761529857,3.0329429,235.19,235.15,2.82572072]
[1759761530052,13.90941811,235.2,235.16,2.82572072]
[1759761530230,13.90941811,235.2,235.17,2.82572072]
[1759761530231,0.67,235.18,235.17,2.82572072]
[1759761532571,18.16095386,235.21,235.17,2.82572072]
[1759761532859,10.6278961,235.23,235.18,2.82572072]
[1759761532860,0.67,235.2,235.18,2.82572072]
[1759761533039,11.54647521,235.22,235.19,2.82572072]
[1759761533242,0.67,235.21,235.2,2.82572072]
[1759761533573,11.54647521,235.23,235.2,2.82572072]
[1759761533758,3.7029429,235.22,235.21,2.82572072]
[1759761535172,3.7029429,235.22,235.13,3.5138936]
[1759761535383,3.0329429,235.18,235.14,2.82728513]
[1759761535548,3.0329429,235.17,235.15,2.82728513]
[1759761535753,4.25217722,235.18,235.16,2.82728513]
[1759761536083,4.25217722,235.18,235.17,2.82728513]
[1759761536250,4.92217722,235.18,235.17,2.82728513]
[1759761536864,4.92217722,235.18,235.1,0.7]
[1759761537072,3.0329429,235.14,235.11,2.82849844]
[1759761537255,3.0329429,235.14,235.12,2.82849844]
[1759761537460,3.0329429,235.14,235.13,2.82849844]
[1759761537671,3.0329429,235.15,235.13,2.82849844]
[1759761537973,3.0329429,235.17,235.14,2.82849844]
[1759761538169,3.0329429,235.16,235.15,2.82849844]
[1759761539468,3.7029429,235.16,235.15,2.82849844]
[1759761539677,3.0329429,235.16,235.15,2.82849844]
[1759761540056,3.7029429,235.16,235.15,2.82849844]
[1759761540258,7.95536678,235.16,235.15,2.82849844]
[1759761540468,7.95536678,235.16,235.08,13.4198598]
[1759761540649,0.67,235.15,235.09,2.82668578]
[1759761540852,10.87647521,235.13,235.1,2.82668578]
[1759761541075,0.67,235.12,235.1,2.82668578]
[1759761541255,3.7029429,235.11,235.05,0.7]
[1759761541449,3.0329429,235.07,235.02,0.7]
[1759761541654,3.0329429,235.06,235.03,2.82793782]
[1759761541877,3.0329429,235.08,235.03,2.82793782]
[1759761542061,3.0329429,235.08,235.04,0.7]
[1759761542261,3.7029429,235.08,235.05,2.82714024]
[1759761542464,3.0329429,235.07,235.06,2.82714024]
[1759761542778,3.7029429,235.07,235.06,2.82714024]
[1759761543164,3.7029429,235.07,235.01,6.6762161]
[1759761543359,3.0329429,235.05,235.02,2.82241268]
[1759761543559,3.0329429,235.05,235.03,2.82241268]
[1759761543873,3.7029429,235.04,235.01,5.9762161]
[1759761544074,10.87647521,235.07,235.02,2.82265271]
[1759761544260,3.0329429,235.08,235.02,2.82265271]
[1759761544261,10.87647521,235.08,235.02,0.7]
[1759761544461,3.0329429,235.07,235.02,0.7]
[1759761544670,3.0329429,235.07,235.03,0.7]
[1759761544875,3.0329429,235.07,235.04,0.7]
[1759761545079,3.0329429,235.08,235.05,0.7]
[1759761545268,11.54647521,235.15,235.06,2.81771211]
[1759761545457,12.87,235.25,235.05,0.7]
[1759761545458,3.0329429,235.16,235.07,3.51730774]
[1759761545657,3.0329429,235.17,235.09,4.25369007]
[1759761545857,13.90941811,235.17,235.1,3.51730774]
[1759761546089,34.7716806,235.21,235.09,4.25369007]
[1759761546090,3.0329429,235.19,235.11,3.51511875]
[1759761546261,3.0329429,235.19,235.12,3.51494959]
[1759761546262,3.0329429,235.18,235.12,3.51494959]
[1759761546462,3.0329429,235.18,235.12,0.7]
[1759761546706,10.72708572,235.25,235.12,0.7]
[1759761546707,11.54647521,235.22,235.12,0.7]
[1759761546876,0.77,235.25,235.13,23.61361456]
[1759761547185,3.0329429,235.23,235.14,3.51361456]
[1759761547368,3.0329429,235.21,235.14,0.7]
[1759761547570,3.0329429,235.2,235.14,0.7]
[1759761548660,3.0329429,235.21,235.14,0.7]
[1759761549261,3.0329429,235.2,235.13,33.18807091]
[1759761549461,3.0329429,235.17,235.13,6.7436437]
[1759761549657,3.0329429,235.17,235.1,0.7]
[1759761549899,3.0329429,235.16,235.11,2.81795456]
[1759761550072,0.67,235.16,235.1,0.7]
[1759761550273,3.0329429,235.16,235.11,2.81810746]
[1759761550572,3.0329429,235.16,235.11,0.7]
[1759761550784,13.90941811,235.22,235.12,0.7]
[1759761551100,3.0329429,235.22,235.13,2.8177326]
[1759761551380,3.0329429,235.22,235.14,3.5177326]
[1759761551586,3.0329429,235.19,235.12,12.38807091]
[1759761551765,0.67,235.18,235.12,12.38807091]
[1759761552180,3.0329429,235.16,235.09,21.5]
[1759761552377,3.0329429,235.16,235.1,2.81709172]
[1759761552586,3.0329429,235.16,235.09,0.7]
[1759761552772,3.0329429,235.16,235.1,2.8170789]
[1759761553087,3.0329429,235.16,235.09,21.5]
[1759761553285,3.0329429,235.16,235.1,2.81659887]
[1759761553596,3.0329429,235.15,235.11,2.81659887]
[1759761553795,3.0329429,235.15,235.12,2.81659887]
[1759761554016,3.0329429,235.15,235.09,21.5]
[1759761554176,3.0329429,235.15,235.1,2.81659627]
[1759761554366,4.92238271,235.17,235.06,41.51773281]
[1759761554367,10.87647521,235.13,235.06,6.7436437]
[1759761554572,10.63087566,235.17,235.07,2.81804099]
[1759761554573,3.0329429,235.09,235.07,2.81804099]
[1759761554794,3.0329429,235.09,235.05,0.7]
[1759761554970,3.0329429,235.09,235.06,3.51687348]
[1759761555171,0.67,235.12,235.07,2.81687348]
[1759761555172,0.67,235.08,235.07,2.81687348]
[1759761555395,3.7029429,235.08,235.01,0.7]
[1759761555589,3.7029429,235.08,235.02,2.81970252]
[1759761555792,3.0329429,235.05,235.03,2.81970252]
[1759761556101,3.0329429,235.05,235.0,6.11238443]
[1759761556276,3.0329429,235.04,235.01,2.81953238]
[1759761556589,3.0329429,235.04,235.02,2.81953238]
[1759761556797,3.7029429,235.04,235.0,5.41238443]
[1759761557177,3.0329429,235.04,235.0,5.41238443]
[1759761557392,3.0329429,235.06,235.01,0.7]
[1759761557692,0.67,235.08,235.01,0.7]
[1759761557912,3.0329429,235.04,234.97,0.7]
[1759761558211,0.67,235.04,234.98,2.82153901]
[1759761558413,3.0329429,235.02,234.99,2.82153901]
[1759761558621,3.0329429,235.02,234.94,5.41238443]
[1759761558789,3.0329429,235.0,234.95,2.82245751]
[1759761558983,0.67,234.99,234.91,0.72]
[1759761559195,0.67,234.99,234.92,2.82311613]
[1759761559196,7.66439876,234.99,234.92,2.82311613]
[1759761559390,7.66439876,234.99,234.93,2.82311613]
[1759761559589,7.66439876,234.99,234.94,2.82311613]
[1759761559791,7.66439876,234.99,234.91,0.72]
[1759761560010,11.91990558,234.99,234.92,2.82140746]
[1759761560308,6.99439876,234.98,234.93,2.82140746]
[1759761560509,0.67,234.97,234.94,2.82140746]
[1759761560701,0.67,234.96,234.88,27.13238443]
[1759761560889,0.67,234.96,234.89,2.82102376]
[1759761561086,0.67,234.96,234.9,2.82102376]
[1759761561412,7.66439876,234.96,234.91,2.81919017]
[1759761561611,0.67,234.95,234.88,27.13238443]
[1759761561906,7.66439876,234.95,234.89,2.81945477]
[1759761562089,11.92063544,234.95,234.9,2.81945477]
[1759761562290,0.67,234.94,234.88,5.61238443]
[1759761562487,0.67,234.94,234.89,2.81710437]
[1759761562682,6.99439876,234.95,234.9,2.81710437]
[1759761562883,0.67,234.95,234.9,0.72]
[1759761564013,0.67,234.95,234.88,5.61238443]
[1759761564315,0.67,234.95,234.89,2.81737982]
[1759761564489,0.67,234.95,234.9,2.81737982]
[1759761564807,0.67,234.95,234.88,5.61238443]
[1759761565005,0.67,234.95,234.89,2.81562255]
[1759761565204,7.66439876,234.95,234.9,2.81562255]
[1759761565423,15.13187907,235.0,234.9,0.72]
[1759761565719,15.13187907,235.0,234.88,0.2]
[1759761565720,0.67,234.95,234.88,0.92]
[1759761565900,0.67,234.95,234.89,2.81564358]
[1759761566096,10.87647521,234.97,234.9,3.53564358]
[1759761566097,6.99439876,234.97,234.9,3.53564358]
[1759761566317,17.87087397,234.97,234.9,0.72]
[1759761566709,10.87647521,234.97,234.9,0.72]
[1759761566912,17.87087397,234.97,234.9,0.72]
[1759761567125,0.67,234.96,234.9,0.72]
[1759761567425,11.92049305,234.96,234.88,0.92]
[1759761567627,7.66439876,234.95,234.89,2.81571769]
[1759761567842,4.25609429,234.96,234.88,0.2]
[1759761567843,6.99439876,234.92,234.88,0.2]
[1759761568129,17.87087397,234.89,234.88,0.2]
[1759761568309,18.54087397,234.89,234.88,0.2]
[1759761569347,15.80378714,234.89,234.88,0.2]
[1759761569631,22.7981859,234.89,234.88,0.2]
[1759761569842,0.67,234.93,234.88,0.2]
[1759761570008,0.67,234.92,234.88,0.2]
[1759761570207,6.99439876,234.94,234.88,0.92]
[1759761570504,0.67,234.93,234.88,0.2]
[1759761570727,6.99439876,234.94,234.88,0.2]
[1759761570927,17.87087397,234.95,234.88,0.2]
[1759761571128,39.34087397,234.99,234.89,0.72]
[1759761571325,11.25008009,234.98,234.89,0.72]
[1759761571526,6.99439876,234.95,234.88,0.2]
[1759761571725,6.99439876,234.96,234.88,0.92]
[1759761572110,6.99439876,234.95,234.88,0.92]
[1759761572443,7.66439876,234.95,234.88,0.92]
[1759761572618,10.87647521,234.97,234.88,0.2]
[1759761572935,0.67,234.97,234.89,0.72]
[1759761573138,10.87647521,234.99,234.89,0.72]
[1759761573305,38.18439876,235.0,234.91,20.8]
[1759761573306,31.19,235.0,234.91,20.8]
[1759761573508,43.81496597,235.08,234.92,0.72]
[1759761573509,6.99439876,235.02,234.92,0.72]
[1759761573728,7.66439876,235.01,234.92,0.72]
[1759761574031,0.67,235.01,234.92,0.72]
[1759761574234,6.99439876,234.98,234.9,0.72]
[1759761574412,0.67,234.97,234.9,0.72]
[1759761574614,6.99439876,234.96,234.9,0.72]
[1759761574925,10.87647521,234.96,234.9,0.72]
[1759761575432,7.66439876,234.97,234.9,0.72]
[1759761575626,10.87647521,234.98,234.9,0.72]
[1759761575824,17.87087397,234.99,234.9,0.72]
[1759761576035,10.87647521,234.99,234.9,4.97709596]
[1759761576330,0.66,234.98,234.91,2.80966576]
[1759761576550,0.66,234.97,234.91,2.80966576]
[1759761576731,0.66,234.97,234.88,4.45746867]
[1759761576943,17.87087397,234.99,234.91,0.72]
[1759761577233,11.53647521,234.99,234.91,0.72]
[1759761577529,4.73196171,234.98,234.9,0.72]
[1759761577832,20.5239419,234.99,234.9,0.72]
[1759761578427,20.8,235.02,234.9,25.77711353]
[1759761578428,10.87647521,235.02,234.9,25.77711353]
[1759761578633,11.53647521,235.01,234.91,3.53047519]
[1759761578935,11.53647521,235.01,234.92,0.72]
[1759761579136,41.17578768,235.06,234.92,0.72]
[1759761579137,4.25472684,235.04,234.92,0.72]
[1759761579322,5.39196171,235.04,234.93,2.80979076]
[1759761579634,0.66,235.04,234.94,4.97640589]
[1759761579836,0.66,235.04,234.95,0.72]
[1759761580132,9.6465696,235.04,234.95,0.72]
[1759761580434,0.66,235.04,234.96,2.81067689]
[1759761580607,5.39196171,235.04,234.96,2.81067689]
[1759761581007,0.66,235.04,234.96,3.53067689]
[1759761581206,5.39196171,235.04,234.96,0.72]
[1759761581434,0.66,235.04,234.96,0.72]
[1759761581631,4.91462419,235.04,234.96,0.72]
[1759761581840,9.6465859,235.04,234.96,0.72]
[1759761582431,5.39196171,235.04,234.96,0.72]
[1759761582632,0.66,235.04,234.96,0.72]
[1759761582813,9.64663606,235.04,234.96,0.72]
[1759761583012,10.87647521,235.03,234.91,7.0209937]
[1759761583333,4.73196171,234.99,234.92,2.81215953]
[1759761583506,4.25554351,234.99,234.93,2.81215953]
[1759761583707,4.25554351,234.99,234.89,0.72]
[1759761583708,4.73196171,234.97,234.89,0.72]
[1759761583934,4.73196171,234.97,234.9,2.81178701]
[1759761583935,0.66,234.96,234.9,2.81178701]
[1759761584142,0.66,234.96,234.91,2.81178701]
[1759761584344,4.73196171,234.97,234.89,0.72]
[1759761584345,0.66,234.95,234.89,0.72]
[1759761584527,0.66,234.95,234.9,2.81287919]
[1759761584839,0.66,234.95,234.91,2.81287919]
[1759761585231,0.66,234.95,234.9,0.72]
[1759761585426,0.66,234.97,234.91,3.53305197]
[1759761585609,0.66,234.97,234.91,0.72]
[1759761585813,10.87647521,234.99,234.91,0.72]
[1759761586015,0.66,235.0,234.92,2.81274832]
[1759761586213,0.66,235.0,234.92,3.53274832]
[1759761586447,0.66,235.0,234.92,0.72]
[1759761587637,0.66,235.0,234.92,4.97673854]
[1759761587814,0.66,235.0,234.93,3.53274409]
[1759761588142,0.69,234.99,234.9,31.23]
[1759761588343,0.69,234.99,234.91,2.81264036]
[1759761588640,0.69,234.99,234.92,3.52264036]
[1759761588815,0.69,234.99,234.93,2.81264036]
[1759761589017,0.69,234.99,234.92,0.71]
[1759761589259,5.42196171,234.99,234.93,2.81600911]
[1759761589426,5.42196171,234.99,234.92,0.71]
[1759761589629,5.42196171,234.99,234.93,2.81515833]
[1759761589832,0.69,234.99,234.93,2.81515833]
[1759761590239,0.69,234.98,234.9,35.4871233]
[1759761590431,0.69,234.98,234.91,2.8152729]
[1759761590628,0.69,234.98,234.92,2.8152729]
[1759761590838,5.42196171,234.98,234.9,31.23]
[1759761591039,0.69,234.98,234.91,2.81513737]
[1759761591340,0.69,234.98,234.92,2.81513737]
[1759761591560,0.69,234.98,234.9,0.71]
[1759761591841,0.69,234.98,234.91,2.81581088]
[1759761592022,4.94568488,234.98,234.92,2.81581088]
[1759761592219,4.94568488,234.98,234.93,2.81581088]
[1759761592534,5.42196171,234.97,234.9,0.71]
[1759761592736,5.42196171,234.97,234.91,2.81829341]
[1759761592932,0.69,234.97,234.92,2.81829341]
[1759761593136,0.69,234.97,234.93,2.81829341]
[1759761593336,0.69,234.97,234.91,0.71]
[1759761593640,1.94709318,235.0,234.92,2.82020002]
[1759761593850,2.63709318,235.0,234.93,3.53020002]
[1759761594036,2.63709318,234.99,234.94,2.82020002]
[1759761594243,0.69,234.98,234.91,0.71]
[1759761594423,0.69,234.98,234.88,4.4574786]
[1759761594424,2.63709318,234.98,234.92,2.82208242]
[1759761594625,2.63709318,234.98,234.93,2.82208242]
[1759761594626,0.69,234.97,234.93,2.82208242]
[1759761594829,0.69,234.96,234.9,0.71]
[1759761595047,0.69,234.96,234.91,2.82238017]
[1759761595252,6.89290308,234.98,234.92,2.82238017]
[1759761595554,6.20290308,234.98,234.93,2.82238017]
[1759761595842,0.69,234.97,234.94,2.82238017]
[1759761596156,0.69,234.96,234.9,0.71]
[1759761596354,0.69,234.96,234.91,2.82605806]
[1759761596642,0.69,234.96,234.92,2.82605806]
[1759761596845,0.69,234.96,234.93,2.82605806]
[1759761597146,0.69,234.98,234.94,2.82605806]
[1759761597343,0.69,234.97,234.95,2.82605806]
[1759761597648,0.69,234.97,234.91,0.71]
[1759761597829,0.69,234.97,234.92,2.82805409]
[1759761598146,0.69,234.97,234.91,0.71]
[1759761598147,0.69,234.97,234.93,2.82805409]
[1759761598335,0.69,234.97,234.94,2.82805409]
[1759761598534,0.69,234.97,234.95,2.82805409]
[1759761598744,10.87647521,234.99,234.96,2.83023044]
[1759761599062,27.69226465,235.01,234.9,4.25713069]
[1759761599248,27.69226465,235.01,234.94,0.71]
[1759761599569,10.87647521,235.02,234.95,2.83373871]
[1759761599716,11.56647521,235.02,234.96,2.83373871]
[1759761599916,12.82356839,235.02,234.97,2.83373871]
[1759761600131,2.63709318,235.01,234.98,2.83373871]
[1759761600340,0.69,235.0,234.99,2.83373871]
[1759761600552,0.69,235.0,234.99,2.11373871]
[1759761600553,13.51356839,235.0,234.99,2.11373871]
[1759761600726,13.51356839,235.0,234.89,4.7132297]
[1759761600727,10.87647521,234.99,234.89,0.71]
[1759761600921,1.94709318,234.96,234.89,0.71]
[1759761601246,1.94709318,234.94,234.89,0.71]
[1759761601542,1.94709318,234.93,234.88,0.2]
[1759761601729,1.94709318,234.93,234.88,0.91]
[1759761601935,1.94709318,234.94,234.88,0.91]
[1759761602153,1.94709318,234.95,234.88,0.91]
[1759761602445,1.94709318,234.95,234.88,0.2]
[1759761602642,1.94709318,234.95,234.89,0.71]
[1759761603061,6.20340172,234.95,234.88,3.73392531]
[1759761603368,1.94709318,234.92,234.88,0.2]
[1759761603570,1.94709318,234.93,234.88,0.2]
[1759761603874,2.63709318,234.92,234.88,0.2]
[1759761604070,10.87647521,234.94,234.88,0.2]
[1759761604374,1.94709318,234.92,234.88,0.2]
[1759761604759,6.89404074,234.92,234.88,0.2]
[1759761605267,12.82356839,234.9,234.88,0.2]
[1759761605471,1.94709318,234.89,234.88,0.2]
[1759761605859,10.87647521,234.89,234.88,0.2]
[1759761606248,31.21,234.91,234.88,0.2]
[1759761606449,10.87647521,234.9,234.88,0.2]
[1759761606648,1.94709318,234.91,234.88,0.2]
[1759761606849,10.87647521,234.91,234.88,0.2]
[1759761607073,12.82356839,234.91,234.88,0.2]
[1759761607260,12.82356839,234.89,234.88,0.2]
[1759761607654,13.51356839,234.89,234.88,0.2]
[1759761608850,17.77088032,234.89,234.88,0.2]
[1759761609251,10.87647521,234.81,234.8,0.2]
[1759761609474,4.94731193,234.89,234.8,2.99148332]
[1759761609684,10.87647521,234.86,234.81,2.79148332]
[1759761609987,4.25731193,234.89,234.82,2.79148332]
[1759761609988,12.82356839,234.83,234.82,2.79148332]
[1759761610158,12.82356839,234.83,234.8,0.2]
[1759761610159,10.87647521,234.82,234.8,0.2]
[1759761610355,12.82356839,234.81,234.8,0.2]
[1759761610571,1.94709318,234.85,234.8,0.2]
[1759761610769,20.8,234.86,234.81,2.64500117]
[1759761610770,13.51356839,234.84,234.81,2.64500117]
[1759761610977,1.94709318,234.83,234.8,0.2]
[1759761611182,10.87647521,234.82,234.8,0.2]
[1759761611373,15.13482903,234.84,234.8,0.2]
[1759761611374,12.82356839,234.81,234.8,0.2]
[1759761611686,13.51356839,234.81,234.8,0.2]
[1759761612564,13.51356839,234.81,234.8,3.03669911]
[1759761612774,13.51356839,234.81,234.8,0.2]
[1759761612974,15.82523761,234.81,234.8,0.2]
[1759761613181,17.77233079,234.81,234.8,0.2]
[1759761615854,15.82523761,234.81,234.8,0.2]
[1759761616059,17.77233079,234.81,234.8,0.2]
[1759761616580,12.82356839,234.81,234.8,0.2]
[1759761616768,10.87647521,234.81,234.8,0.2]
[1759761616955,10.87647521,234.82,234.8,0.2]
[1759761617155,30.52,234.84,234.8,0.91]
[1759761617369,10.64294822,234.9,234.81,2.82937307]
[1759761617370,6.20483405,234.87,234.81,2.82937307]
[1759761617581,10.64294822,234.9,234.8,0.91]
[1759761617582,12.82356839,234.86,234.82,3.53937307]
[1759761617773,12.82356839,234.86,234.83,2.82937307]
[1759761617774,1.94709318,234.85,234.83,2.82937307]
[1759761617985,10.87647521,234.86,234.8,0.2]
[1759761618159,1.94709318,234.82,234.81,2.82877041]
[1759761618360,10.87647521,234.86,234.81,3.54877041]
[1759761618586,1.94709318,234.84,234.82,2.82877041]
[1759761618785,1.94709318,234.84,234.83,0.72]
[1759761618958,10.87647521,234.86,234.83,0.72]
[1759761618959,1.94709318,234.85,234.83,0.72]
[1759761619791,10.87647521,234.86,234.83,0.72]
[1759761619978,1.94709318,234.85,234.83,0.72]
[1759761620581,1.94709318,234.85,234.81,0.72]
[1759761620785,1.94709318,234.84,234.81,0.72]
[1759761620969,10.87647521,234.88,234.82,2.82581077]
[1759761621292,10.87647521,234.82,234.77,0.2]
[1759761621480,12.82356839,234.78,234.76,1e-08]
[1759761621666,30.54,234.81,234.71,0.2]
[1759761621667,31.67647521,234.75,234.71,0.2]
[1759761621873,31.67647521,234.72,234.71,0.2]
[1759761622062,35.57066157,234.72,234.71,0.2]
[1759761622267,36.28066157,234.72,234.71,0.2]
[1759761622490,31.67647521,234.68,234.65,0.2]
[1759761622692,53.32709318,234.68,234.65,0.2]
[1759761622877,12.82356839,234.66,234.65,0.2]
[1759761623184,25.06112604,234.68,234.65,0.92]
[1759761623388,4.74566381,234.68,234.65,0.92]
[1759761623593,4.74566381,234.68,234.66,0.72]
[1759761623965,4.74566381,234.68,234.67,0.72]
[1759761624173,25.54566381,234.72,234.67,0.72]
[1759761624364,4.74566381,234.72,234.67,0.72]
[1759761624589,10.87647521,234.73,234.68,0.72]
[1759761624590,4.74566381,234.71,234.68,0.72]
[1759761624786,30.6,234.74,234.69,0.72]
[1759761624967,30.6,234.74,234.65,0.2]
[1759761624968,4.74566381,234.72,234.65,0.2]
[1759761625175,4.74566381,234.66,234.65,0.2]
[1759761625475,10.87647521,234.69,234.65,0.2]
[1759761625681,30.62,234.7,234.65,0.92]
[1759761626006,30.62,234.7,234.66,0.72]
[1759761626168,30.62,234.7,234.67,0.72]
[1759761626368,35.36566381,234.7,234.68,0.72]
[1759761626573,4.74566381,234.7,234.68,0.72]
[1759761626909,4.74566381,234.72,234.69,0.72]
[1759761627271,4.74566381,234.73,234.7,0.72]
[1759761627570,4.74566381,234.71,234.65,0.2]
[1759761627777,4.74566381,234.71,234.66,0.72]
[1759761627978,15.13652905,234.74,234.66,0.72]
[1759761627979,4.74566381,234.74,234.66,21.52]
[1759761628192,4.74566381,234.75,234.67,3.5397066]
[1759761628500,4.74566381,234.75,234.68,3.5397066]
[1759761628670,4.74566381,234.77,234.69,3.5397066]
[1759761628875,4.74566381,234.77,234.7,3.5397066]
[1759761629180,4.25914174,234.79,234.65,39.44974841]
[1759761629181,4.74566381,234.78,234.71,3.5397066]
[1759761629372,4.74566381,234.78,234.65,35.18809108]
[1759761629373,42.20647521,234.77,234.65,0.2]
[1759761629582,4.74566381,234.66,234.65,0.2]
[1759761630782,16.33213902,234.66,234.65,0.2]
[1759761631193,20.59362372,234.66,234.65,0.2]
[1759761631888,19.88362372,234.66,234.65,0.2]
[1759761632090,20.59362372,234.66,234.65,0.2]
[1759761633093,20.59362372,234.66,234.63,0.2]
[1759761633094,35.93832314,234.64,234.63,0.2]
[1759761633282,40.68398695,234.64,234.63,0.2]
[1759761633497,10.87647521,234.63,234.62,0.2]
[1759761633804,47.07213902,234.63,234.62,0.2]
[1759761634278,47.07213902,234.63,234.62,1e-08]
[1759761635208,51.33416859,234.63,234.62,1e-08]
[1759761635416,10.87647521,234.59,234.49,0.71]